[Event "44th Chess Olympiad Open 2022"]
[Site "Chennai"]
[Date "2022.08.02"]
[Round "5.59"]
[White "Salim Issa, Ali Shamas"]
[Black "Kawuma, Patrick"]
[Result "1/2-1/2"]
[WhiteElo "1851"]
[BlackElo "2270"]
[Annotator "NA"]
[PlyCount "66"]
[EventDate "2022.??.??"]
[TimeControl "60"]

1. d4 {[%emt 0:00:06]} Nf6 {[%emt 0:00:36]} 2. c4 {[%emt 0:00:20]} e6 {[%emt 0:
00:00]} 3. Nc3 {[%emt 0:00:22]} Bb4 {[%emt 0:03:00]} 4. e3 {[%emt 0:00:24]} b6
{[%emt 0:07:53]} 5. Nge2 {[%emt 0:01:46]} Bb7 {[%emt 0:01:16]} 6. a3 {[%emt 0:
00:00]} Be7 {[%emt 0:00:13]} 7. Ng3 {[%emt 0:00:17]} h5 {[%emt 0:07:15]} 8. h3
{[%emt 0:00:52]} h4 {[%emt 0:01:07]} 9. Nge2 {[%emt 0:00:16]} d6 {[%emt 0:00:
00]} 10. d5 {[%emt 0:00:52]} e5 {[%emt 0:01:39]} 11. e4 {[%emt 0:00:05]} Nbd7 {
[%emt 0:02:07]} 12. Be3 {[%emt 0:00:49]} Nh5 {[%emt 0:08:47]} 13. Qd2 {[%emt 0:
00:00]} Nf8 {[%emt 0:07:40]} 14. b4 {[%emt 0:02:17]} Ng6 {[%emt 0:00:45]} 15.
g3 {[%emt 0:00:21]} hxg3 {[%emt 0:01:02]} 16. fxg3 {[%emt 0:00:10]} Ba6 {
[%emt 0:02:16]} 17. b5 {[%emt 0:00:31]} Bc8 {[%emt 0:00:06]} 18. Bg2 {[%emt 0:
00:00]} Nf6 {[%emt 0:06:55]} 19. a4 {[%emt 0:00:34]} Bd7 {[%emt 0:05:19]} 20.
Ng1 {[%emt 0:04:28]} Nh5 {[%emt 0:01:31]} 21. Nge2 {[%emt 0:00:49]} a6 {
[%emt 0:09:20]} 22. Bf3 {[%emt 0:11:29]} Nf8 {[%emt 0:02:13]} 23. Kd1 {[%emt 0:
00:00]} g5 {[%emt 0:01:23]} 24. Kc2 {[%emt 0:00:46]} Ng6 {[%emt 0:00:30]} 25.
Kb3 {[%emt 0:00:41]} Ng7 {[%emt 0:02:22]} 26. Bg2 {[%emt 0:01:54]} Kf8 {
[%emt 0:12:02]} 27. Raf1 {[%emt 0:00:57]} Kg8 {[%emt 0:00:08]} 28. Ng1 {
[%emt 0:03:01]} Be8 {[%emt 0:08:00]} 29. Nf3 {[%emt 0:01:45]} Nh5 {[%emt 0:00:
00]} 30. Ne2 {[%emt 0:09:16]} f6 {[%emt 0:00:32]} 31. Ne1 {[%emt 0:01:45]} Ng7
{[%emt 0:01:01]} 32. Nc2 {[%emt 0:01:42]} Bd7 {[%emt 0:00:33]} 33. Qd3 {
[%emt 0:02:51]} Qc8 {[%emt 0:00:23]} 1/2-1/2

[Event "44th Chess Olympiad Open 2022"]
[Site "Chennai"]
[Date "2022.08.02"]
[Round "5.59"]
[White "Al Kathiri, Mana"]
[Black "Egesa emmanuel"]
[Result "1/2-1/2"]
[WhiteElo "1598"]
[BlackElo "2152"]
[Annotator "RC"]
[PlyCount "153"]
[EventDate "2022.??.??"]
[TimeControl "60"]

1. d4 {[%emt 0:00:06]} Nf6 {[%emt 0:00:12]} 2. Nf3 {[%emt 0:00:10]} d5 {
[%emt 0:01:02]} 3. Bf4 {[%emt 0:00:08]} c5 {[%emt 0:00:10]} 4. e3 {[%emt 0:00:
00]} Nc6 {[%emt 0:00:10]} 5. Nbd2 {[%emt 0:00:51]} e6 {[%emt 0:04:26]} 6. c3 {
[%emt 0:00:43]} Bd6 {[%emt 0:01:54]} 7. Bg3 {[%emt 0:02:08]} O-O {[%emt 0:00:
00]} 8. Bd3 {[%emt 0:00:06]} Qe7 {[%emt 0:06:36]} 9. Ne5 {[%emt 0:03:12]} Bxe5
{[%emt 0:07:02]} 10. dxe5 {[%emt 0:00:54]} Nd7 {[%emt 0:00:15]} 11. f4 {
[%emt 0:01:40]} f6 {[%emt 0:02:48]} 12. exf6 {[%emt 0:01:07]} Nxf6 {[%emt 0:00:
00]} 13. O-O {[%emt 0:00:41]} e5 {[%emt 0:03:10]} 14. Bb5 {[%emt 0:12:47]} e4 {
[%emt 0:02:41]} 15. Bh4 {[%emt 0:04:35]} a6 {[%emt 0:05:05]} 16. Bxc6 {[%emt 0:
00:00]} bxc6 {[%emt 0:00:03]} 17. Qa4 {[%emt 0:02:57]} Bd7 {[%emt 0:02:15]} 18.
Qa3 {[%emt 0:01:02]} Rfb8 {[%emt 0:09:02]} 19. Rac1 {[%emt 0:13:49]} Qe8 {
[%emt 0:22:28]} 20. Bxf6 {[%emt 0:02:00]} gxf6 {[%emt 0:00:06]} 21. Nb3 {
[%emt 0:03:02]} c4 {[%emt 0:00:25]} 22. Nd4 {[%emt 0:02:46]} Qf8 {[%emt 0:00:
00]} 23. Qxf8+ {[%emt 0:01:12]} Kxf8 {[%emt 0:00:04]} 24. Rc2 {[%emt 0:03:32]}
Rb6 {[%emt 0:06:55]} 25. h3 {[%emt 0:02:48]} Rab8 {[%emt 0:00:34]} 26. b4 {
[%emt 0:05:35]} a5 {[%emt 0:05:49]} 27. a3 {[%emt 0:02:12]} axb4 {[%emt 0:00:
00]} 28. axb4 {[%emt 0:00:51]} Ra6 {[%emt 0:00:20]} 29. f5 {[%emt 0:03:22]}
Rba8 {[%emt 0:01:05]} 30. Kh2 {[%emt 0:01:33]} Ra2 {[%emt 0:04:07]} 31. Rxa2 {
[%emt 0:06:26]} Rxa2 {[%emt 0:00:02]} 32. Kg3 {[%emt 0:01:56]} Rd2 {[%emt 0:00:
00]} 33. Rc1 {[%emt 0:03:25]} Ke7 {[%emt 0:01:39]} 34. Rc2 {[%emt 0:01:41]} Rd1
{[%emt 0:00:26]} 35. Kf2 {[%emt 0:01:18]} Kd6 {[%emt 0:02:55]} 36. g4 {[%emt 0:
00:00]} Rh1 {[%emt 0:00:32]} 37. Kg2 {[%emt 0:02:24]} Re1 {[%emt 0:00:12]} 38.
Ne2 {[%emt 0:03:10]} Ra1 {[%emt 0:01:38]} 39. Rb2 {[%emt 0:01:29]} Be8 {
[%emt 0:00:30]} 40. h4 {[%emt 0:01:13]} Ke5 {[%emt 0:02:10]} 41. Nd4 {[%emt 0:
00:00]} Bd7 {[%emt 0:30:36]} 42. Rf2 {[%emt 0:01:18]} Ra3 {[%emt 0:02:47]} 43.
g5 {[%emt 0:00:18]} Be8 {[%emt 0:00:56]} 44. g6 {[%emt 0:03:14]} hxg6 {[%emt 0:
00:00]} 45. fxg6 {[%emt 0:00:08]} Bxg6 {[%emt 0:00:15]} 46. Nxc6+ {[%emt 0:00:
00]} Ke6 {[%emt 0:00:12]} 47. Nd4+ {[%emt 0:00:43]} Ke7 {[%emt 0:00:41]} 48.
Rc2 {[%emt 0:01:00]} Be8 {[%emt 0:00:34]} 49. Kg3 {[%emt 0:00:20]} Ra1 {
[%emt 0:00:25]} 50. Rd2 {[%emt 0:00:26]} Rg1+ {[%emt 0:00:58]} 51. Rg2 {
[%emt 0:01:03]} Re1 {[%emt 0:00:35]} 52. Kf4 {[%emt 0:00:17]} Rf1+ {[%emt 0:00:
00]} 53. Kg3 {[%emt 0:00:02]} Bd7 {[%emt 0:02:13]} 54. Kh2 {[%emt 0:01:19]} Be8
{[%emt 0:00:31]} 55. Rg7+ {[%emt 0:00:18]} Kd6 {[%emt 0:00:30]} 56. Rg8 {
[%emt 0:00:22]} Bf7 {[%emt 0:00:29]} 57. Rg2 {[%emt 0:00:18]} Rb1 {[%emt 0:00:
00]} 58. Kg3 {[%emt 0:00:11]} Rc1 {[%emt 0:01:06]} 59. Ra2 {[%emt 0:00:22]} Be8
{[%emt 0:00:23]} 60. Ra6+ {[%emt 0:00:24]} Ke7 {[%emt 0:00:21]} 61. Re6+ {
[%emt 0:00:38]} Kf7 {[%emt 0:00:21]} 62. Rd6 {[%emt 0:00:19]} Rxc3 {[%emt 0:00:
00]} 63. Rxd5 {[%emt 0:00:07]} Rxe3+ {[%emt 0:00:27]} 64. Kf4 {[%emt 0:00:22]}
Rh3 {[%emt 0:00:00]} 65. h5 {[%emt 0:00:00]} e3 {[%emt 0:00:00]} 66. b5 {
[%emt 0:00:00]} e2 {[%emt 0:00:00]} 67. Nxe2 {[%emt 0:00:00]} Rb3 {[%emt 0:00:
00]} 68. Nd4 {[%emt 0:00:00]} Rb1 {[%emt 0:00:00]} 69. Rc5 {[%emt 0:00:00]} c3
{[%emt 0:00:00]} 70. Rc7+ {[%emt 0:00:00]} Kg8 {[%emt 0:00:00]} 71. h6 {
[%emt 0:00:00]} Bxb5 {[%emt 0:01:24]} 72. Rxc3 {[%emt 0:00:00]} Rf1+ {[%emt 0:
00:00]} 73. Rf3 {[%emt 0:00:00]} Rxf3+ {[%emt 0:00:27]} 74. Kxf3 {[%emt 0:00:
00]} Bd7 {[%emt 0:00:02]} 75. Kf4 {[%emt 0:00:00]} Kh7 {[%emt 0:00:07]} 76. Ne2
{[%emt 0:00:00]} Kxh6 {[%emt 0:00:17]} 77. Nd4 {[%emt 0:00:00]} 1/2-1/2

[Event "44th Chess Olympiad Open 2022"]
[Site "Chennai"]
[Date "2022.08.02"]
[Round "5.60"]
[White "Gong, Daniel Hanwen"]
[Black "Lau, Lut Yin Luke"]
[Result "1-0"]
[WhiteElo "2296"]
[BlackElo "2027"]
[Annotator "NA RC"]
[PlyCount "59"]
[EventDate "2022.??.??"]
[TimeControl "60"]

1. e4 {[%emt 0:00:02]} e5 {[%emt 0:00:42]} 2. Nf3 {[%emt 0:00:05]} Nf6 {
[%emt 0:00:16]} 3. Nxe5 {[%emt 0:00:07]} d6 {[%emt 0:00:08]} 4. Nf3 {[%emt 0:
00:00]} Nxe4 {[%emt 0:00:04]} 5. Bd3 {[%emt 0:00:07]} Nf6 {[%emt 0:01:59]} 6.
h3 {[%emt 0:00:05]} Be7 {[%emt 0:00:47]} 7. O-O {[%emt 0:00:06]} O-O {[%emt 0:
00:00]} 8. c3 {[%emt 0:00:02]} d5 {[%emt 0:07:56]} 9. Bc2 {[%emt 0:00:24]} Nc6
{[%emt 0:06:13]} 10. d4 {[%emt 0:00:16]} h6 {[%emt 0:05:57]} 11. Ne5 {[%emt 0:
00:00]} Bd6 {[%emt 0:07:20]} 12. f4 {[%emt 0:01:08]} Ne4 {[%emt 0:02:26]} 13.
Nd2 {[%emt 0:25:14]} f5 {[%emt 0:08:45]} 14. Bb3 {[%emt 0:12:31]} Be6 {[%emt 0:
00:00]} 15. Nxe4 {[%emt 0:07:03]} fxe4 {[%emt 0:00:09]} 16. f5 {[%emt 0:18:52]}
Nxe5 {[%emt 0:12:45]} 17. dxe5 {[%emt 0:02:31]} Bc5+ {[%emt 0:00:13]} 18. Kh2 {
[%emt 0:00:35]} Rxf5 {[%emt 0:04:59]} 19. Rxf5 {[%emt 0:03:26]} Bxf5 {[%emt 0:
00:00]} 20. Qxd5+ {[%emt 0:00:32]} Qxd5 {[%emt 0:00:06]} 21. Bxd5+ {[%emt 0:00:
00]} Kh8 {[%emt 0:09:07]} 22. Bf4 {[%emt 0:07:35]} Rd8 {[%emt 0:03:31]} 23.
Bxb7 {[%emt 0:03:03]} Rb8 {[%emt 0:00:11]} 24. Bd5 {[%emt 0:01:31]} Rxb2 {
[%emt 0:00:06]} 25. Rf1 {[%emt 0:02:19]} Bf2 {[%emt 0:05:59]} 26. e6 {[%emt 0:
00:00]} Bg6 {[%emt 0:01:39]} 27. e7 {[%emt 0:00:53]} e3 {[%emt 0:00:44]} 28.
Bxe3 {[%emt 0:00:23]} c6 {[%emt 0:05:54]} 29. Bc4 {[%emt 0:01:44]} Rb7 {
[%emt 0:00:49]} 30. Bc5 {[%emt 0:01:53]} 1-0

[Event "44th Chess Olympiad Open 2022"]
[Site "Chennai"]
[Date "2022.08.02"]
[Round "5.60"]
[White "Duneas, John"]
[Black "Nissinen, Niilo Man"]
[Result "1-0"]
[WhiteElo "2031"]
[BlackElo "1693"]
[Annotator "NA RC"]
[PlyCount "81"]
[EventDate "2022.??.??"]
[TimeControl "60"]

1. d4 {[%emt 0:00:05]} Nf6 {[%emt 0:00:05]} 2. c4 {[%emt 0:00:09]} g6 {[%emt 0:
00:00]} 3. Nc3 {[%emt 0:00:10]} d5 {[%emt 0:00:06]} 4. cxd5 {[%emt 0:00:26]}
Nxd5 {[%emt 0:00:06]} 5. e4 {[%emt 0:00:11]} Nxc3 {[%emt 0:00:07]} 6. bxc3 {
[%emt 0:00:05]} Bg7 {[%emt 0:00:09]} 7. Be3 {[%emt 0:00:16]} c5 {[%emt 0:00:25]
} 8. Rc1 {[%emt 0:00:35]} O-O {[%emt 0:02:17]} 9. Qd2 {[%emt 0:00:40]} b6 {
[%emt 0:09:31]} 10. dxc5 {[%emt 0:11:56]} Qc7 {[%emt 0:01:49]} 11. cxb6 {
[%emt 0:01:44]} axb6 {[%emt 0:00:07]} 12. Qb2 {[%emt 0:02:59]} Be6 {[%emt 0:00:
00]} 13. a3 {[%emt 0:05:49]} Qc6 {[%emt 0:38:21]} 14. Nf3 {[%emt 0:16:20]} Qxe4
{[%emt 0:01:11]} 15. Ng5 {[%emt 0:02:59]} Qd5 {[%emt 0:04:50]} 16. Nxe6 {
[%emt 0:00:29]} fxe6 {[%emt 0:00:14]} 17. Qxb6 {[%emt 0:16:00]} Rxa3 {[%emt 0:
00:00]} 18. Qb4 {[%emt 0:15:59]} Rb3 {[%emt 0:04:19]} 19. Qc4 {[%emt 0:02:15]}
Nd7 {[%emt 0:00:49]} 20. Qxd5 {[%emt 0:02:30]} exd5 {[%emt 0:00:06]} 21. c4 {
[%emt 0:02:48]} d4 {[%emt 0:01:28]} 22. c5 {[%emt 0:02:56]} Rb2 {[%emt 0:00:28]
} 23. Bd2 {[%emt 0:02:31]} Rxd2 {[%emt 0:02:52]} 24. c6 {[%emt 0:01:34]} Rdxf2
{[%emt 0:12:55]} 25. cxd7 {[%emt 0:00:46]} R2f6 {[%emt 0:01:28]} 26. Rc8 {
[%emt 0:03:07]} Rd6 {[%emt 0:00:49]} 27. Bc4+ {[%emt 0:00:21]} Kh8 {[%emt 0:00:
00]} 28. Rf1 {[%emt 0:02:27]} Rxd7 {[%emt 0:00:24]} 29. Rfxf8+ {[%emt 0:00:13]}
Bxf8 {[%emt 0:00:05]} 30. Rxf8+ {[%emt 0:00:06]} Kg7 {[%emt 0:00:03]} 31. Rf7+
{[%emt 0:00:26]} Kh6 {[%emt 0:00:07]} 32. Kd2 {[%emt 0:00:41]} g5 {[%emt 0:00:
00]} 33. Bd3 {[%emt 0:00:31]} g4 {[%emt 0:00:17]} 34. Rxh7+ {[%emt 0:01:07]}
Kg5 {[%emt 0:00:05]} 35. Rf7 {[%emt 0:00:25]} Ra7 {[%emt 0:00:51]} 36. Rf5+ {
[%emt 0:01:02]} Kh4 {[%emt 0:02:03]} 37. Be4 {[%emt 0:01:52]} g3 {[%emt 0:00:
00]} 38. h3 {[%emt 0:00:27]} Ra2+ {[%emt 0:00:34]} 39. Kd3 {[%emt 0:01:15]} e5
{[%emt 0:01:17]} 40. Bf3 {[%emt 0:01:48]} e4+ {[%emt 0:01:03]} 41. Kxe4 {
[%emt 0:30:19]} 1-0

[Event "44th Chess Olympiad Open 2022"]
[Site "Chennai"]
[Date "2022.08.02"]
[Round "5.60"]
[White "Deng, Yu Dong Michael"]
[Black "Croad, Nicolas"]
[Result "0-1"]
[WhiteElo "2028"]
[BlackElo "2289"]
[Annotator "NA RC"]
[PlyCount "94"]
[EventDate "2022.??.??"]
[TimeControl "60"]

1. d4 {[%emt 0:00:03]} Nf6 {[%emt 0:00:04]} 2. c4 {[%emt 0:00:02]} e6 {[%emt 0:
00:00]} 3. Nc3 {[%emt 0:00:09]} Bb4 {[%emt 0:00:08]} 4. a3 {[%emt 0:00:02]}
Bxc3+ {[%emt 0:00:08]} 5. bxc3 {[%emt 0:00:01]} Nc6 {[%emt 0:00:24]} 6. f3 {
[%emt 0:02:10]} b6 {[%emt 0:00:30]} 7. e4 {[%emt 0:00:04]} Na5 {[%emt 0:01:02]}
8. Bd3 {[%emt 0:00:21]} Ba6 {[%emt 0:00:23]} 9. Qe2 {[%emt 0:00:01]} c5 {
[%emt 0:01:39]} 10. Be3 {[%emt 0:00:59]} cxd4 {[%emt 0:06:00]} 11. cxd4 {
[%emt 0:01:06]} Rc8 {[%emt 0:01:32]} 12. Rc1 {[%emt 0:11:25]} Qe7 {[%emt 0:00:
00]} 13. e5 {[%emt 0:08:22]} Ng8 {[%emt 0:03:35]} 14. c5 {[%emt 0:02:08]} Bxd3
{[%emt 0:01:58]} 15. Qxd3 {[%emt 0:00:03]} Qh4+ {[%emt 0:10:50]} 16. g3 {
[%emt 0:14:09]} Qd8 {[%emt 0:01:39]} 17. d5 {[%emt 0:20:47]} exd5 {[%emt 0:00:
00]} 18. cxb6 {[%emt 0:05:28]} Rxc1+ {[%emt 0:00:39]} 19. Bxc1 {[%emt 0:00:01]}
Qxb6 {[%emt 0:02:01]} 20. Qxd5 {[%emt 0:01:36]} Nc6 {[%emt 0:02:00]} 21. f4 {
[%emt 0:03:33]} Nge7 {[%emt 0:02:26]} 22. Qd3 {[%emt 0:00:35]} Nxe5 {[%emt 0:
00:00]} 23. fxe5 {[%emt 0:08:10]} Qc6 {[%emt 0:00:10]} 24. Qd6 {[%emt 0:01:42]}
Qxc1+ {[%emt 0:00:25]} 25. Kf2 {[%emt 0:08:50]} Nc6 {[%emt 0:06:40]} 26. h3 {
[%emt 0:02:01]} h5 {[%emt 0:04:39]} 27. Rh2 {[%emt 0:02:32]} h4 {[%emt 0:04:01]
} 28. Nf3 {[%emt 0:03:14]} Rh6 {[%emt 0:02:00]} 29. Qd5 {[%emt 0:00:57]} hxg3+
{[%emt 0:01:02]} 30. Kxg3 {[%emt 0:00:02]} Rg6+ {[%emt 0:00:57]} 31. Kf2 {
[%emt 0:00:03]} Qxa3 {[%emt 0:00:41]} 32. Rh1 {[%emt 0:01:07]} Qb2+ {[%emt 0:
00:00]} 33. Ke3 {[%emt 0:00:45]} Qb6+ {[%emt 0:07:12]} 34. Kf4 {[%emt 0:01:16]}
Qb4+ {[%emt 0:03:38]} 35. Ke3 {[%emt 0:00:25]} Qc3+ {[%emt 0:00:14]} 36. Kf4 {
[%emt 0:00:56]} a5 {[%emt 0:06:03]} 37. Rd1 {[%emt 0:00:46]} Qb4+ {[%emt 0:00:
00]} 38. Ke3 {[%emt 0:00:09]} Qb6+ {[%emt 0:01:04]} 39. Kf4 {[%emt 0:01:46]}
Qd8 {[%emt 0:00:43]} 40. Rb1 {[%emt 0:01:29]} Nb4 {[%emt 0:07:56]} 41. Qb5 {
[%emt 0:31:14]} Rb6 {[%emt 0:34:45]} 42. Qf1 {[%emt 0:00:00]} Nd5+ {[%emt 0:00:
00]} 43. Kg3 {[%emt 0:00:00]} Rg6+ {[%emt 0:00:00]} 44. Kf2 {[%emt 0:00:00]}
Qc7 {[%emt 0:00:00]} 45. Nd4 {[%emt 0:00:00]} Qc3 {[%emt 0:00:00]} 46. Rb8+ {
[%emt 0:00:00]} Ke7 {[%emt 0:00:00]} 47. Nf5+ {[%emt 0:00:00]} Ke6 {[%emt 0:00:
00]} 0-1

[Event "44th Chess Olympiad Open 2022"]
[Site "Chennai"]
[Date "2022.08.02"]
[Round "5.60"]
[White "Kannappan, Thanneermalai"]
[Black "Stark, John"]
[Result "1-0"]
[WhiteElo "1699"]
[BlackElo "2028"]
[Annotator "NA RC"]
[PlyCount "113"]
[EventDate "2022.??.??"]
[TimeControl "60"]

1. e4 {[%emt 0:00:03]} e6 {[%emt 0:00:11]} 2. d4 {[%emt 0:00:07]} d5 {[%emt 0:
00:00]} 3. Nc3 {[%emt 0:00:23]} Nf6 {[%emt 0:00:09]} 4. Bg5 {[%emt 0:00:47]}
Bb4 {[%emt 0:00:12]} 5. e5 {[%emt 0:00:35]} h6 {[%emt 0:00:04]} 6. Bd2 {
[%emt 0:00:31]} Bxc3 {[%emt 0:00:46]} 7. bxc3 {[%emt 0:00:20]} Ne4 {[%emt 0:00:
00]} 8. Qg4 {[%emt 0:05:29]} g6 {[%emt 0:00:06]} 9. Bd3 {[%emt 0:00:30]} Nxd2 {
[%emt 0:00:19]} 10. Kxd2 {[%emt 0:00:12]} c5 {[%emt 0:00:18]} 11. h4 {[%emt 0:
00:00]} h5 {[%emt 0:08:38]} 12. Qg3 {[%emt 0:07:53]} Nc6 {[%emt 0:01:01]} 13.
Ne2 {[%emt 0:01:22]} c4 {[%emt 0:15:56]} 14. Bxg6 {[%emt 0:00:15]} fxg6 {
[%emt 0:01:02]} 15. Qxg6+ {[%emt 0:00:15]} Kd7 {[%emt 0:01:40]} 16. Nf4 {
[%emt 0:04:01]} Qe8 {[%emt 0:07:45]} 17. Qg7+ {[%emt 0:06:15]} Kd8 {[%emt 0:00:
00]} 18. Qf6+ {[%emt 0:12:02]} Ne7 {[%emt 0:05:39]} 19. Nxe6+ {[%emt 0:01:37]}
Bxe6 {[%emt 0:00:15]} 20. Qxe6 {[%emt 0:00:04]} Qg6 {[%emt 0:01:29]} 21. Qxg6 {
[%emt 0:12:20]} Nxg6 {[%emt 0:00:28]} 22. Rab1 {[%emt 0:01:49]} Kc7 {[%emt 0:
00:00]} 23. Ke3 {[%emt 0:04:51]} Raf8 {[%emt 0:05:17]} 24. f3 {[%emt 0:08:56]}
a6 {[%emt 0:05:58]} 25. a4 {[%emt 0:02:38]} Rhg8 {[%emt 0:06:12]} 26. g3 {
[%emt 0:06:44]} Ne7 {[%emt 0:00:48]} 27. Rhg1 {[%emt 0:00:14]} Nf5+ {[%emt 0:
00:00]} 28. Kf2 {[%emt 0:00:06]} Rg6 {[%emt 0:00:36]} 29. Rg2 {[%emt 0:03:42]}
Rfg8 {[%emt 0:01:50]} 30. Rbg1 {[%emt 0:00:13]} Kb6 {[%emt 0:01:45]} 31. g4 {
[%emt 0:01:54]} hxg4 {[%emt 0:04:51]} 32. Rxg4 {[%emt 0:00:31]} Nxh4 {[%emt 0:
00:00]} 33. Rxg6+ {[%emt 0:00:18]} Rxg6 {[%emt 0:11:30]} 34. Rxg6+ {[%emt 0:00:
00]} Nxg6 {[%emt 0:00:05]} 35. Kg3 {[%emt 0:00:23]} Kc6 {[%emt 0:03:01]} 36. f4
{[%emt 0:01:40]} Kd7 {[%emt 0:05:04]} 37. f5 {[%emt 0:02:11]} Nf8 {[%emt 0:00:
00]} 38. a5 {[%emt 0:02:58]} Ke7 {[%emt 0:00:20]} 39. Kf4 {[%emt 0:00:45]} Kf7
{[%emt 0:00:30]} 40. Kg5 {[%emt 0:04:04]} Nh7+ {[%emt 0:00:21]} 41. Kh6 {
[%emt 0:31:12]} Nf8 {[%emt 0:30:19]} 42. Kg5 {[%emt 0:00:20]} Kg7 {[%emt 0:00:
00]} 43. Kf4 {[%emt 0:02:41]} Nh7 {[%emt 0:00:00]} 44. Kg4 {[%emt 0:00:00]} Kh6
{[%emt 0:00:00]} 45. Kf4 {[%emt 0:00:00]} Kh5 {[%emt 0:00:00]} 46. e6 {[%emt 0:
00:00]} Nf6 {[%emt 0:00:00]} 47. Ke5 {[%emt 0:00:00]} Kg5 {[%emt 0:00:00]} 48.
e7 {[%emt 0:00:00]} Ne8 {[%emt 0:00:00]} 49. Ke6 {[%emt 0:00:00]} Ng7+ {
[%emt 0:00:00]} 50. Kf7 {[%emt 0:00:00]} Nxf5 {[%emt 0:00:36]} 51. e8=Q {
[%emt 0:00:00]} Nd6+ {[%emt 0:00:29]} 52. Ke7 {[%emt 0:00:00]} Nxe8 {[%emt 0:
00:00]} 53. Kxe8 {[%emt 0:00:00]} Kf4 {[%emt 0:02:27]} 54. Kd7 {[%emt 0:00:00]}
Ke3 {[%emt 0:00:30]} 55. Kd6 {[%emt 0:00:00]} Kd2 {[%emt 0:01:45]} 56. Kxd5 {
[%emt 0:00:00]} Kxc3 {[%emt 0:00:27]} 57. Ke4 {[%emt 0:00:42]} 1-0

[Event "44th Chess Olympiad Open 2022"]
[Site "Chennai"]
[Date "2022.08.02"]
[Round "5.61"]
[White "Wong, Yinn Long"]
[Black "Anhwere, Bernard"]
[Result "1-0"]
[WhiteElo "2381"]
[BlackElo "1890"]
[Annotator "RC"]
[PlyCount "59"]
[EventDate "2022.??.??"]
[TimeControl "60"]

1. d4 {[%emt 0:00:24]} d5 {[%emt 0:00:16]} 2. Bf4 {[%emt 0:00:11]} e6 {[%emt 0:
00:00]} 3. e3 {[%emt 0:00:15]} c5 {[%emt 0:00:15]} 4. c3 {[%emt 0:00:11]} Nc6 {
[%emt 0:02:11]} 5. Nd2 {[%emt 0:00:29]} Nf6 {[%emt 0:00:40]} 6. Ngf3 {[%emt 0:
00:00]} Bd6 {[%emt 0:01:54]} 7. Bg3 {[%emt 0:00:07]} O-O {[%emt 0:05:53]} 8.
Bd3 {[%emt 0:01:31]} c4 {[%emt 0:05:50]} 9. Bc2 {[%emt 0:01:40]} Qc7 {[%emt 0:
00:00]} 10. e4 {[%emt 0:03:10]} dxe4 {[%emt 0:03:53]} 11. Nxe4 {[%emt 0:03:11]}
Nxe4 {[%emt 0:10:38]} 12. Bxe4 {[%emt 0:00:07]} f6 {[%emt 0:02:58]} 13. Qa4 {
[%emt 0:10:57]} Bxg3 {[%emt 0:05:20]} 14. hxg3 {[%emt 0:00:08]} f5 {[%emt 0:00:
00]} 15. Bxc6 {[%emt 0:01:05]} Qxc6 {[%emt 0:00:19]} 16. Qxc6 {[%emt 0:00:06]}
bxc6 {[%emt 0:00:07]} 17. Ne5 {[%emt 0:00:13]} Rb8 {[%emt 0:04:23]} 18. O-O-O {
[%emt 0:00:50]} c5 {[%emt 0:03:16]} 19. Nc6 {[%emt 0:09:49]} Rb7 {[%emt 0:00:
00]} 20. dxc5 {[%emt 0:00:17]} Rc7 {[%emt 0:01:10]} 21. Rd6 {[%emt 0:00:05]}
Bb7 {[%emt 0:03:24]} 22. Nd8 {[%emt 0:08:45]} Bd5 {[%emt 0:05:16]} 23. c6 {
[%emt 0:05:11]} Bxg2 {[%emt 0:05:18]} 24. Rhd1 {[%emt 0:05:49]} Re8 {[%emt 0:
00:00]} 25. b4 {[%emt 0:06:33]} Bd5 {[%emt 0:03:08]} 26. b5 {[%emt 0:05:08]}
Kf8 {[%emt 0:01:01]} 27. Re1 {[%emt 0:00:32]} Ree7 {[%emt 0:02:07]} 28. a4 {
[%emt 0:03:07]} a6 {[%emt 0:04:03]} 29. b6 {[%emt 0:00:36]} Rc8 {[%emt 0:00:20]
} 30. b7 {[%emt 0:00:15]} 1-0

[Event "44th Chess Olympiad Open 2022"]
[Site "Chennai"]
[Date "2022.08.02"]
[Round "5.61"]
[White "Poh, Yu Tian"]
[Black "Adu Jnr, Lionel"]
[Result "1-0"]
[WhiteElo "2118"]
[BlackElo "1824"]
[Annotator "NA RC"]
[PlyCount "59"]
[EventDate "2022.??.??"]
[TimeControl "60"]

1. e4 {[%emt 0:00:03]} c6 {[%emt 0:00:09]} 2. d4 {[%emt 0:00:03]} d5 {[%emt 0:
00:00]} 3. e5 {[%emt 0:00:03]} c5 {[%emt 0:00:08]} 4. Nf3 {[%emt 0:00:04]} Bg4
{[%emt 0:00:09]} 5. dxc5 {[%emt 0:00:06]} Nc6 {[%emt 0:05:24]} 6. c3 {[%emt 0:
00:00]} Bxf3 {[%emt 0:00:26]} 7. Qxf3 {[%emt 0:00:05]} Nxe5 {[%emt 0:00:50]} 8.
Bb5+ {[%emt 0:00:05]} Nc6 {[%emt 0:00:28]} 9. c4 {[%emt 0:01:05]} e6 {[%emt 0:
00:00]} 10. Be3 {[%emt 0:02:25]} Nf6 {[%emt 0:08:51]} 11. Nc3 {[%emt 0:01:39]}
a6 {[%emt 0:01:17]} 12. Bxc6+ {[%emt 0:06:32]} bxc6 {[%emt 0:00:38]} 13. b4 {
[%emt 0:01:08]} a5 {[%emt 0:05:30]} 14. b5 {[%emt 0:01:34]} Nd7 {[%emt 0:05:53]
} 15. cxd5 {[%emt 0:04:12]} cxd5 {[%emt 0:03:58]} 16. Na4 {[%emt 0:05:39]} Be7
{[%emt 0:33:47]} 17. O-O {[%emt 0:01:20]} O-O {[%emt 0:00:23]} 18. c6 {[%emt 0:
00:00]} Ne5 {[%emt 0:00:32]} 19. Qg3 {[%emt 0:01:08]} Bd6 {[%emt 0:01:53]} 20.
Bf4 {[%emt 0:00:25]} Nc4 {[%emt 0:05:23]} 21. Bxd6 {[%emt 0:00:21]} Qxd6 {
[%emt 0:00:52]} 22. Qxd6 {[%emt 0:00:33]} Nxd6 {[%emt 0:00:04]} 23. b6 {
[%emt 0:00:31]} Rac8 {[%emt 0:20:23]} 24. c7 {[%emt 0:00:24]} Nc4 {[%emt 0:00:
00]} 25. Rfc1 {[%emt 0:00:13]} Nd6 {[%emt 0:01:45]} 26. Rab1 {[%emt 0:00:10]}
Nb7 {[%emt 0:01:05]} 27. Nc5 {[%emt 0:00:09]} Nd6 {[%emt 0:00:25]} 28. b7 {
[%emt 0:00:06]} Rxc7 {[%emt 0:00:00]} 29. b8=Q {[%emt 0:00:07]} Rfc8 {[%emt 0:
00:00]} 30. Qxc7 {[%emt 0:00:11]} 1-0